bitfinex-derivatives/quotes_BTCF0:USTF0_20250608
["timestamp","ask_amount","ask_price","bid_price","bid_amount"]
[1749351748443,1.20169686,105520.0,105510.0,0.2151513]
[1749351748750,1.20169686,105520.0,105510.0,0.2151515]
[1749351748951,1.20169686,105520.0,105510.0,0.02569]
[1749351749151,1.20169686,105520.0,105510.0,0.2151537]
[1749351750243,1.20169686,105520.0,105510.0,0.02569]
[1749351752450,1.20169686,105520.0,105510.0,0.05609]
[1749351754556,1.20169686,105520.0,105510.0,0.6063546]
[1749351754757,1.20169686,105520.0,105510.0,0.41689]
[1749351755349,0.85169686,105520.0,105510.0,0.3932]
[1749351755555,0.99169686,105520.0,105510.0,0.3932]
[1749351756654,1.09485686,105520.0,105510.0,0.3932]
[1749351758654,1.2425334,105520.0,105510.0,0.3932]
[1749351763955,1.09485686,105520.0,105510.0,0.3932]
[1749351765158,1.09485686,105520.0,105510.0,0.0324]
[1749351765361,1.09485686,105520.0,105510.0,0.3932]
[1749351768162,1.09485686,105520.0,105510.0,0.0324]
[1749351768350,1.09485686,105520.0,105510.0,0.3932]
[1749351768554,1.0653274,105520.0,105510.0,0.3932]
[1749351768859,1.2453274,105520.0,105510.0,0.3932]
[1749351769766,1.03627178,105520.0,105510.0,0.3932]
[1749351769966,1.2453274,105520.0,105510.0,0.3932]
[1749351770267,1.2453274,105520.0,105510.0,0.39724878]
[1749351770663,1.15666372,105520.0,105510.0,0.39724878]
[1749351770865,1.24533076,105520.0,105510.0,0.39724878]
[1749351771365,1.24533076,105520.0,105510.0,0.03644878]
[1749351771663,1.15666372,105520.0,105510.0,0.39724878]
[1749351772358,1.15666372,105520.0,105510.0,0.42954878]
[1749351772958,1.27485686,105520.0,105510.0,0.42954878]
[1749351775071,1.27485686,105520.0,105510.0,0.39724878]
[1749351775664,1.27485686,105520.0,105510.0,0.03644878]
[1749351778067,1.63565686,105520.0,105510.0,0.03644878]
[1749351779771,1.42660124,105520.0,105510.0,0.03644878]
[1749351779975,1.06580124,105520.0,105510.0,0.03644878]
[1749351780173,1.27485686,105520.0,105510.0,0.03644878]
[1749351782471,1.63565686,105520.0,105510.0,0.03644878]
[1749351784073,1.27485686,105520.0,105510.0,0.03644878]
[1749351785179,1.63565686,105520.0,105510.0,0.03644878]
[1749351786678,1.27485686,105520.0,105510.0,0.03644878]
[1749351786871,1.63565686,105520.0,105510.0,0.03644878]
[1749351788080,1.27485686,105520.0,105510.0,0.03644878]
[1749351788280,1.63565686,105520.0,105510.0,0.03644878]
[1749351789381,1.63565686,105520.0,105510.0,0.00604878]
[1749351794085,1.74018467,105520.0,105510.0,0.00604878]
[1749351794881,1.63565686,105520.0,105510.0,0.00604878]
[1749351797385,1.42660124,105520.0,105510.0,0.00604878]
[1749351797585,1.63565686,105520.0,105510.0,0.00604878]
[1749351797785,1.27485686,105520.0,105510.0,0.00604878]
[1749351798586,1.63565686,105520.0,105510.0,0.00604878]
[1749351799581,1.27485686,105520.0,105510.0,0.002]
[1749351800284,1.63565686,105520.0,105510.0,0.002]
[1749351804094,1.27485686,105520.0,105510.0,0.002]
[1749351804295,1.63565686,105520.0,105510.0,0.002]
[1749351808598,1.7833334,105520.0,105510.0,0.002]
[1749351809400,1.4225334,105520.0,105510.0,0.002]
[1749351809699,1.27485686,105520.0,105510.0,0.0349]
[1749351809897,1.7833334,105520.0,105510.0,0.0349]
[1749351810093,1.4225334,105520.0,105510.0,0.0349]
[1749351810299,1.27485686,105520.0,105510.0,0.0349]
[1749351810699,1.63565686,105520.0,105510.0,0.0349]
[1749351810998,1.7833334,105520.0,105510.0,0.0349]
[1749351812194,1.63565686,105520.0,105510.0,0.0349]
[1749351812390,1.7833334,105520.0,105510.0,0.0349]
[1749351812595,1.27485686,105520.0,105510.0,0.0349]
[1749351812800,1.63565686,105520.0,105510.0,0.0349]
[1749351813001,1.7833334,105520.0,105510.0,0.0349]
[1749351813501,1.4225334,105520.0,105510.0,0.0349]
[1749351813700,1.63565686,105520.0,105510.0,0.0349]
[1749351814001,1.7833334,105520.0,105510.0,0.0349]
[1749351815404,1.4225334,105520.0,105510.0,0.0349]
[1749351815998,1.7833334,105520.0,105510.0,0.0349]
[1749351818206,1.4225334,105520.0,105510.0,0.0349]
[1749351818394,1.7833334,105520.0,105510.0,0.0349]
[1749351818600,1.63565686,105520.0,105510.0,0.0349]
[1749351823703,1.27485686,105520.0,105510.0,0.0349]
[1749351823903,1.63565686,105520.0,105510.0,0.0349]
[1749351825106,1.27485686,105520.0,105510.0,0.0349]
[1749351825304,1.63565686,105520.0,105510.0,0.0349]
[1749351829301,1.27485686,105520.0,105510.0,0.0349]
[1749351829506,1.63565686,105520.0,105510.0,0.0349]
[1749351829805,1.42660124,105520.0,105510.0,0.0349]
[1749351830112,1.63565686,105520.0,105510.0,0.0349]
[1749351831411,1.27485686,105520.0,105510.0,0.0349]
[1749351831615,1.63565686,105520.0,105510.0,0.0349]
[1749351832011,1.42660124,105520.0,105510.0,0.0349]
[1749351832208,1.63565686,105520.0,105510.0,0.0349]
[1749351838126,1.27485686,105520.0,105510.0,0.0349]
[1749351838318,1.63565686,105520.0,105510.0,0.0349]
[1749351838714,1.48646372,105520.0,105510.0,0.0349]
[1749351839020,1.51956372,105520.0,105510.0,0.0349]
[1749351842026,1.63775686,105520.0,105510.0,0.0349]
[1749351843528,1.27695686,105520.0,105510.0,0.0349]
[1749351843726,1.63775686,105520.0,105510.0,0.0349]
[1749351845025,1.27695686,105520.0,105510.0,0.0349]
[1749351845330,1.63775686,105520.0,105510.0,0.0349]
[1749351845829,1.27695686,105520.0,105510.0,0.0349]
[1749351846032,1.63775686,105520.0,105510.0,0.0349]
[1749351848326,1.74228467,105520.0,105510.0,0.0349]
[1749351852031,1.38148467,105520.0,105510.0,0.0349]
[1749351852223,1.74228467,105520.0,105510.0,0.0349]
[1749351852834,1.74228467,105520.0,105510.0,0.002]
[1749351853126,1.42870124,105520.0,105510.0,0.002]
[1749351853332,1.74228467,105520.0,105510.0,0.002]
[1749351854733,1.38148467,105520.0,105510.0,0.002]
[1749351855136,1.74228467,105520.0,105510.0,0.002]
[1749351857335,1.74633345,105520.0,105510.0,0.001]
[1749351857536,1.74833345,105520.0,105510.0,0.001]
[1749351857833,0.189462,105510.0,105500.0,0.52522603]
[1749351858033,0.92262938,105510.0,105500.0,0.52522603]
[1749351858627,0.95218295,105510.0,105500.0,0.48079]
[1749351859734,1.05242295,105510.0,105500.0,0.48079]
[1749351861134,1.05242295,105510.0,105500.0,0.11999]
[1749351861336,1.05242295,105510.0,105500.0,0.48079]
[1749351863835,1.05242295,105510.0,105500.0,0.4571]
[1749351865139,1.41322295,105510.0,105500.0,0.0312]
[1749351865444,0.1894979,105490.0,105480.0,0.40523603]
[1749351865736,0.70289046,105490.0,105480.0,1.26498]
[1749351865941,0.82105679,105490.0,105480.0,1.26498]
[1749351866738,0.70289046,105490.0,105480.0,1.26498]
[1749351866939,0.70289046,105490.0,105480.0,1.00498]
[1749351867641,0.70289046,105490.0,105480.0,1.00698]
[1749351867947,0.70289046,105490.0,105480.0,1.00898]
[1749351868548,0.61426571,105490.0,105480.0,1.05341603]
[1749351869842,0.62382273,105490.0,105480.0,1.05341603]
[1749351873450,0.62382273,105490.0,105480.0,1.24293183]
[1749351873951,0.32358273,105490.0,105480.0,1.34745964]
[1749351874454,0.30378273,105490.0,105480.0,1.34745964]
[1749351874654,0.30378273,105490.0,105480.0,1.35150842]
[1749351875443,0.19925492,105490.0,105480.0,1.35150842]
[1749351875755,0.30378273,105490.0,105480.0,1.24698061]
[1749351877349,0.30378273,105490.0,105480.0,1.35150842]
[1749351879153,0.19925492,105490.0,105480.0,1.24698061]
[1749351879353,0.30378273,105490.0,105480.0,1.35150842]
[1749351879750,0.30378273,105490.0,105480.0,1.41070021]
[1749351879950,0.30378273,105490.0,105480.0,1.3061724]
[1749351880251,0.30378273,105490.0,105480.0,1.41070021]
[1749351881250,0.30378273,105490.0,105480.0,1.77150021]
[1749351881449,0.19925492,105490.0,105480.0,1.77150021]
[1749351881755,0.30378273,105490.0,105480.0,1.77150021]
[1749351882749,0.30378273,105490.0,105480.0,1.6669724]
[1749351882950,0.30378273,105490.0,105480.0,1.77150021]
[1749351884256,0.30378273,105490.0,105480.0,1.04990021]
[1749351884456,0.30378273,105490.0,105480.0,1.77150021]
[1749351885657,0.30378273,105490.0,105480.0,1.86034874]
[1749351888657,0.30378273,105490.0,105480.0,1.86027444]
[1749351891465,0.30378273,105490.0,105480.0,1.88397444]
[1749351891660,0.30378273,105490.0,105480.0,1.83961271]
[1749351894360,0.00014177,105500.0,105490.0,0.3467972]
[1749351894568,0.50051116,105530.0,105520.0,0.1894434]
[1749351894863,1.22699122,105530.0,105520.0,0.9110434]
[1749351895055,1.25759122,105530.0,105520.0,0.9110434]
[1749351895255,1.35867122,105530.0,105520.0,0.9110434]
[1749351895455,1.25414341,105530.0,105520.0,1.01557121]
[1749351895656,1.35867122,105530.0,105520.0,1.01557121]
[1749351895863,1.25414341,105530.0,105520.0,1.01557121]
[1749351896162,1.27404647,105530.0,105520.0,1.01557121]
[1749351896564,1.27804647,105530.0,105520.0,1.01557121]
[1749351896757,1.27804647,105530.0,105520.0,0.9110434]
[1749351897057,1.27804647,105530.0,105520.0,1.01557121]
[1749351898358,1.27804647,105530.0,105520.0,0.9110434]
[1749351898563,1.36667122,105530.0,105520.0,1.01557121]
[1749351898861,1.36267122,105530.0,105520.0,1.01557121]
[1749351899061,1.36467122,105530.0,105520.0,1.01557121]
[1749351899263,1.36267122,105530.0,105520.0,1.01557121]
[1749351900153,1.36267122,105530.0,105520.0,0.82612781]
[1749351900760,1.36267122,105530.0,105520.0,1.26100781]
[1749351902165,1.36267122,105530.0,105520.0,1.15648]
[1749351902557,1.36267122,105530.0,105520.0,0.7216]
[1749351902758,1.36267122,105530.0,105520.0,0.82612781]
[1749351902962,1.36267122,105530.0,105520.0,1.26100781]
[1749351906062,1.36267122,105530.0,105520.0,1.28874659]
[1749351907555,1.36267122,105530.0,105520.0,1.18421878]
[1749351908567,1.27404647,105530.0,105520.0,1.18421878]
[1749351908768,1.25814341,105530.0,105520.0,1.28874659]
[1749351908969,1.27404647,105530.0,105520.0,1.28874659]
[1749351909169,1.27404647,105530.0,105520.0,1.18421878]
[1749351909468,1.16951866,105530.0,105520.0,1.18421878]
[1749351909668,1.27404647,105530.0,105520.0,1.18421878]
[1749351909969,1.27404647,105530.0,105520.0,1.28874659]
[1749351910871,1.27404647,105530.0,105520.0,1.47818999]
[1749351911068,1.12211796,105530.0,105520.0,1.47818999]
[1749351911364,1.07475826,105530.0,105520.0,1.47818999]
[1749351911970,1.07495826,105530.0,105520.0,1.47818999]
[1749351912170,1.17928607,105530.0,105520.0,1.47818999]
[1749351912370,1.17948607,105530.0,105520.0,1.47818999]
[1749351913761,0.54654596,105530.0,105520.0,1.47818999]
[1749351913969,0.256625,105530.0,105520.0,1.5827178]
[1749351914165,0.256625,105530.0,105520.0,1.6435178]
[1749351914369,0.256425,105530.0,105520.0,1.6435178]
[1749351914571,0.256625,105530.0,105520.0,1.6435178]
[1749351922079,0.256625,105530.0,105520.0,1.43446218]
[1749351922276,0.256625,105530.0,105520.0,1.6435178]
[1749351922782,0.256625,105530.0,105520.0,1.68789193]
[1749351931384,0.256625,105530.0,105520.0,1.58336412]
[1749351933188,0.288025,105530.0,105520.0,1.58336412]
[1749351938100,0.288025,105530.0,105520.0,1.55306412]
[1749351938401,0.37664975,105530.0,105520.0,1.55306412]
[1749351938601,0.37664975,105530.0,105520.0,1.52256412]
[1749351939498,0.37664975,105530.0,105520.0,1.58172963]
[1749351943394,0.37664975,105530.0,105520.0,1.14684963]
[1749351943601,0.53117756,105530.0,105520.0,1.58145033]
[1749351945089,0.53117756,105530.0,105520.0,1.14685033]
[1749351945295,1.15570537,105530.0,105520.0,1.22835291]
[1749351945493,1.18504695,105530.0,105520.0,0.02773878]
[1749351945796,0.1894441,105520.0,105510.0,0.8401159]
[1749351946102,1.17995521,105520.0,105510.0,0.8401159]
[1749351946494,1.17995521,105520.0,105510.0,0.79574177]
[1749351946893,1.18095521,105520.0,105510.0,0.79574177]
[1749351947095,1.21375521,105520.0,105510.0,0.79574177]
[1749351947903,1.21475521,105520.0,105510.0,0.79574177]
[1749351949104,1.24785521,105520.0,105510.0,0.79574177]
[1749351949598,1.1433274,105520.0,105510.0,0.79979055]
[1749351949996,1.1433274,105520.0,105510.0,0.36499055]
[1749351950296,1.1433274,105520.0,105510.0,0.79971055]
[1749351951706,1.26149373,105520.0,105510.0,0.79971055]
[1749351951897,1.26149373,105520.0,105510.0,0.36499055]
[1749351952098,1.26149373,105520.0,105510.0,0.79963055]
[1749351952599,1.36602154,105520.0,105510.0,0.79963055]
[1749351954594,1.24785521,105520.0,105510.0,0.79963055]
[1749351958603,1.15909972,105520.0,105510.0,0.79963055]
[1749351967607,0.9500441,105520.0,105510.0,0.79963055]
[1749351967803,1.05457191,105520.0,105510.0,0.79963055]
[1749351968506,1.1433274,105520.0,105510.0,0.79963055]
[1749351968907,1.05457191,105520.0,105510.0,0.79963055]
[1749351969417,1.1433274,105520.0,105510.0,0.79963055]
[1749351970115,1.1433274,105520.0,105510.0,0.43883055]
[1749351970314,1.1433274,105520.0,105510.0,0.79963055]
[1749351972419,1.1433274,105520.0,105510.0,0.84400468]
[1749351972615,1.24785521,105520.0,105510.0,0.84400468]
[1749351973719,1.1433274,105520.0,105510.0,0.84400468]
[1749351977819,1.03879959,105520.0,105510.0,0.84400468]
[1749351978026,1.1433274,105520.0,105510.0,0.84400468]
[1749351981627,1.1433274,105520.0,105510.0,0.48320468]
[1749351981826,1.1433274,105520.0,105510.0,0.84400468]
[1749351982523,1.1433274,105520.0,105510.0,0.40936468]
[1749351982731,1.1433274,105520.0,105510.0,0.84324468]
[1749351985729,1.24785521,105520.0,105510.0,0.84324468]
[1749351986725,1.1433274,105520.0,105510.0,0.84324468]
[1749351987934,1.24785521,105520.0,105510.0,0.84324468]
[1749351988526,1.27726605,105520.0,105510.0,0.79887055]
[1749351988732,1.17273824,105520.0,105510.0,0.79887055]
[1749351988931,1.27726605,105520.0,105510.0,0.79887055]
[1749351991435,1.27726605,105520.0,105510.0,0.43807055]
[1749351991635,1.27726605,105520.0,105510.0,0.79887055]
[1749351996638,1.17273824,105520.0,105510.0,0.79887055]
[1749351998728,1.14331871,105520.0,105510.0,0.84324468]
[1749351999832,1.14331871,105520.0,105510.0,0.40936468]
[1749352000138,0.189462,105510.0,105500.0,0.01048]
[1749352000439,1.07515614,105510.0,105500.0,0.01048]
[1749352001034,0.97062833,105510.0,105500.0,0.01048]
[1749352001340,1.07515614,105510.0,105500.0,0.01048]
[1749352001735,1.07515614,105510.0,105500.0,0.01248]
[1749352002442,1.16377277,105510.0,105500.0,0.01248]
[1749352004944,1.04560644,105510.0,105500.0,0.01248]
[1749352010753,1.04560644,105510.0,105500.0,0.002]
[1749352011950,1.58052644,105510.0,105500.0,0.002]
[1749352012952,1.58052644,105510.0,105500.0,0.01248]
[1749352023951,1.58052644,105510.0,105500.0,0.002]
[1749352027351,1.58052644,105510.0,105500.0,0.01248]
[1749352029364,1.49190981,105510.0,105500.0,0.01248]
[1749352035063,1.61007614,105510.0,105500.0,0.01248]
[1749352038167,1.50554833,105510.0,105500.0,0.01248]
[1749352038368,1.61007614,105510.0,105500.0,0.01248]
[1749352038568,1.49190981,105510.0,105500.0,0.01248]
[1749352038770,1.63958635,105510.0,105500.0,0.01248]
[1749352040370,1.61021564,105510.0,105500.0,0.01248]
[1749352040871,1.49190981,105510.0,105500.0,0.01248]
[1749352042574,1.6102162,105510.0,105500.0,0.01248]
[1749352045376,1.63958635,105510.0,105500.0,0.01248]
[1749352045781,1.74411416,105510.0,105500.0,0.01248]
[1749352046183,1.63958635,105510.0,105500.0,0.01248]
[1749352046382,1.53505854,105510.0,105500.0,0.01248]
[1749352046584,1.63958635,105510.0,105500.0,0.01248]
[1749352048588,1.61019042,105510.0,105500.0,0.01248]
[1749352049688,2.07551823,105510.0,105500.0,0.01248]
[1749352049986,2.22319477,105510.0,105500.0,0.01248]
[1749352052592,2.22191477,105510.0,105500.0,0.01248]
[1749352052890,2.10363416,105510.0,105500.0,0.01248]
[1749352053691,2.22188516,105510.0,105500.0,0.01248]
[1749352056395,2.22188516,105510.0,105500.0,0.002]
[1749352057096,1.86108516,105510.0,105500.0,0.002]
[1749352057294,2.22188516,105510.0,105500.0,0.002]
[1749352057995,2.07420862,105510.0,105500.0,0.002]
[1749352067807,2.22188516,105510.0,105500.0,0.002]
[1749352068308,2.07420862,105510.0,105500.0,0.002]
[1749352069310,1.95595762,105510.0,105500.0,0.002]
[1749352069506,2.10363416,105510.0,105500.0,0.002]
[1749352071407,1.56999416,105510.0,105500.0,0.002]
[1749352071612,2.10243416,105510.0,105500.0,0.002]
[1749352072015,2.22066328,105510.0,105500.0,0.002]
[1749352072217,2.07298674,105510.0,105500.0,0.002]
[1749352083620,2.10243416,105510.0,105500.0,0.002]
[1749352084825,2.10243416,105510.0,105480.0,0.0549059]
[1749352084826,0.1894972,105490.0,105480.0,0.0549059]
[1749352085017,1.4434376,105490.0,105480.0,0.01049]
[1749352085221,1.4434376,105490.0,105480.0,0.04189]
[1749352085423,1.4434376,105490.0,105480.0,0.10359]
[1749352086626,1.4434376,105490.0,105480.0,0.10659]
[1749352086829,1.4434376,105490.0,105480.0,0.10859]
[1749352087324,1.4434376,105490.0,105480.0,0.10559]
[1749352087529,1.4434376,105490.0,105480.0,0.10759]
[1749352088631,1.35474501,105490.0,105480.0,0.10759]
[1749352089222,0.99394501,105490.0,105480.0,0.10759]
[1749352090223,0.71256192,105490.0,105480.0,0.10759]
[1749352090430,1.08536192,105490.0,105480.0,0.10759]
[1749352090629,1.11536192,105490.0,105480.0,0.10759]
[1749352090830,0.77536192,105490.0,105480.0,0.10759]
[1749352092430,1.10536192,105490.0,105480.0,0.10759]
[1749352093332,0.77536192,105490.0,105480.0,0.10759]
[1749352095334,1.13536192,105490.0,105480.0,0.10759]
[1749352096133,1.16616192,105490.0,105480.0,0.10759]
[1749352096434,0.80616192,105490.0,105480.0,0.10759]
[1749352096827,1.12616192,105490.0,105480.0,0.10759]
[1749352097234,0.77536192,105490.0,105480.0,0.10759]
[1749352097734,0.68674501,105490.0,105480.0,0.10759]
[1749352098432,1.00674501,105490.0,105480.0,0.10759]
[1749352098625,1.00674501,105490.0,105480.0,0.46839]
[1749352098626,0.99083104,105490.0,105480.0,0.46839]
[1749352098823,1.09535885,105490.0,105480.0,0.46839]
[1749352099938,0.99083104,105490.0,105480.0,0.46839]
[1749352100230,1.09535885,105490.0,105480.0,0.46839]
[1749352100937,1.12665885,105490.0,105480.0,0.46839]
[1749352101926,1.12665885,105490.0,105480.0,0.10759]
[1749352102436,1.12665885,105490.0,105480.0,0.46839]
[1749352103038,1.12665885,105490.0,105480.0,0.37529]
[1749352107630,1.12665885,105490.0,105480.0,0.3648]
[1749352108235,1.24492554,105490.0,105480.0,0.3648]
[1749352110446,1.14039773,105490.0,105480.0,0.3648]
[1749352110646,1.24492554,105490.0,105480.0,0.3648]
[1749352110938,1.24492554,105490.0,105480.0,0.004]
[1749352111140,1.1563117,105490.0,105480.0,0.004]
[1749352111345,1.24501275,105490.0,105480.0,0.0145]
[1749352112246,1.05178389,105490.0,105480.0,0.0145]
[1749352112448,1.1563117,105490.0,105480.0,0.0145]
[1749352114049,1.12677254,105490.0,105480.0,0.0145]
[1749352114548,1.12677254,105490.0,105480.0,0.0589159]
[1749352115553,1.12677254,105490.0,105480.0,0.0145]
[1749352117252,1.12677254,105490.0,105480.0,0.0589159]
[1749352118254,0.9335172,105490.0,105480.0,0.0589159]
[1749352118454,1.03804501,105490.0,105480.0,0.0589159]
[1749352118655,1.12680665,105490.0,105480.0,0.0589159]
[1749352119253,1.12680936,105490.0,105480.0,0.0589159]
[1749352121459,1.03804501,105490.0,105480.0,0.0589159]
[1749352123756,1.1563117,105490.0,105480.0,0.0145]
[1749352124159,1.03804501,105490.0,105480.0,0.0145]
[1749352128649,0.9335172,105490.0,105480.0,0.0145]
[1749352128855,1.1563117,105490.0,105480.0,0.0145]
[1749352134362,1.1563117,105490.0,105480.0,0.004]
[1749352137566,1.30398824,105490.0,105480.0,0.004]
[1749352138858,1.1563117,105490.0,105480.0,0.004]
[1749352141260,1.2061517,105490.0,105480.0,0.004]
[1749352141462,1.2061517,105490.0,105480.0,0.3648]
[1749352146871,0.7463917,105490.0,105480.0,0.5543146]
[1749352147065,0.93476601,105490.0,105480.0,0.3648]
[1749352147272,1.11649932,105490.0,105480.0,0.4092159]
[1749352147470,1.11669932,105490.0,105480.0,0.4092159]
[1749352148171,1.11669932,105490.0,105480.0,0.5987325]
[1749352148968,1.11669932,105490.0,105480.0,0.4092159]
[1749352151070,1.11669932,105490.0,105480.0,0.0484159]
[1749352151272,1.11669932,105490.0,105480.0,0.4092159]
[1749352157575,1.11669932,105490.0,105480.0,0.3648]
[1749352161174,1.11669932,105490.0,105480.0,0.5543153]
[1749352161374,1.11649932,105490.0,105480.0,0.3648]
[1749352161575,1.11669932,105490.0,105480.0,0.3648]
[1749352163177,1.11669932,105490.0,105480.0,0.5543153]
[1749352163674,1.11669932,105490.0,105480.0,0.3648]
[1749352163976,1.11669932,105490.0,105480.0,0.4092159]
[1749352168881,1.11669932,105490.0,105480.0,0.3648]
[1749352171384,1.11669932,105490.0,105480.0,0.8410559]
[1749352172882,1.11669932,105490.0,105480.0,0.4802559]
[1749352173088,1.11669932,105490.0,105480.0,0.8410559]
[1749352173588,1.11669932,105490.0,105480.0,0.79664]
[1749352177083,1.01217151,105490.0,105480.0,0.79664]
[1749352177281,1.11669932,105490.0,105480.0,0.8410826]
[1749352178691,1.1463517,105490.0,105480.0,0.79664]
[1749352181391,1.17576155,105490.0,105480.0,0.79664]
[1749352185099,1.29396991,105490.0,105480.0,0.79664]
[1749352185397,1.14629337,105490.0,105480.0,0.79664]
[1749352186903,1.04176556,105490.0,105480.0,0.79664]
[1749352187104,1.1894421,105490.0,105480.0,0.79664]
[1749352187405,1.14629337,105490.0,105480.0,0.79664]
[1749352188701,1.11673997,105490.0,105480.0,0.8410826]
[1749352189500,1.11673997,105490.0,105480.0,0.84108617]
[1749352190103,1.11673997,105490.0,105480.0,0.84513495]
[1749352193010,1.11653997,105490.0,105480.0,0.84513495]
[1749352196707,1.11653997,105490.0,105480.0,0.48433495]
[1749352196902,1.11653997,105490.0,105480.0,0.84513495]
[1749352204311,1.11653997,105490.0,105480.0,0.41329495]
[1749352204512,1.11653997,105490.0,105480.0,0.84509495]
[1749352215222,1.11653997,105490.0,105480.0,0.80064878]
[1749352215425,1.23474833,105490.0,105480.0,0.80064878]
[1749352218723,1.14609337,105490.0,105480.0,0.80064878]
[1749352223335,1.02788501,105490.0,105480.0,0.80064878]
[1749352227832,1.02788501,105490.0,105480.0,0.36884878]
[1749352228030,1.02788501,105490.0,105480.0,0.80064878]
[1749352228837,1.11656682,105490.0,105480.0,0.84509495]
[1749352232933,1.23477518,105490.0,105480.0,0.84509495]
[1749352233829,1.11656682,105490.0,105480.0,0.84509495]
[1749352240440,1.11656682,105490.0,105480.0,1.03461025]
[1749352240643,1.23477518,105490.0,105480.0,0.84509495]
[1749352241743,1.15652682,105490.0,105480.0,1.03461025]
[1749352242943,0.53700682,105490.0,105480.0,1.03461025]
[1749352243243,0.85542682,105490.0,105480.0,1.23543806]
[1749352243444,0.79242682,105490.0,105480.0,1.31460357]
[1749352243641,0.79262682,105490.0,105480.0,1.31460357]
[1749352243841,0.79262682,105490.0,105480.0,1.31055479]
[1749352244044,0.53262682,105490.0,105480.0,1.31055479]
[1749352244543,0.44374501,105490.0,105480.0,1.31055479]
[1749352244737,0.44394501,105490.0,105480.0,1.31055479]
[1749352244938,0.44374501,105490.0,105480.0,1.31055479]
[1749352245642,0.44394501,105490.0,105480.0,1.20602698]
[1749352246043,0.34422501,105490.0,105480.0,1.56682698]
[1749352246236,0.34422501,105490.0,105480.0,0.84522698]
[1749352246442,0.34422501,105490.0,105480.0,1.56682698]
[1749352248346,0.34422501,105490.0,105480.0,0.84522698]
[1749352248550,0.34422501,105490.0,105480.0,1.56682698]
[1749352249044,0.1896973,105490.0,105480.0,2.1830847]
[1749352249243,0.1896973,105490.0,105480.0,2.37271047]
[1749352249444,0.1894973,105490.0,105480.0,2.31351919]
[1749352249744,0.1896973,105490.0,105480.0,2.31351919]
[1749352250353,0.1896973,105490.0,105480.0,2.37269461]
[1749352252351,0.1896973,105490.0,105480.0,1.65109461]
[1749352252543,0.1896973,105490.0,105480.0,2.37269461]
[1749352253651,0.1896973,105490.0,105480.0,2.52999461]
[1749352254651,0.1896973,105490.0,105480.0,2.34039461]
[1749352258256,0.23699667,105500.0,105490.0,0.1894973]
[1749352258455,0.34152448,105500.0,105490.0,0.78830856]
[1749352258758,0.34172448,105500.0,105490.0,0.78830856]
[1749352259151,0.37412448,105500.0,105490.0,0.89283637]
[1749352259653,0.40442448,105500.0,105490.0,0.89283637]
[1749352260558,0.40442448,105500.0,105490.0,0.69200856]
[1749352260755,0.50895229,105500.0,105490.0,1.12368856]
[1749352260947,0.54155229,105500.0,105490.0,1.12368856]
[1749352261458,0.94155229,105500.0,105490.0,0.64766509]
[1749352261657,0.63155229,105500.0,105490.0,0.80984779]
[1749352261859,0.97155229,105500.0,105490.0,0.99934509]
[1749352265662,0.97255229,105500.0,105490.0,0.99934509]
[1749352265867,0.97355229,105500.0,105490.0,0.99934509]
[1749352266362,0.97355229,105500.0,105490.0,0.9819773]
[1749352266569,0.97355229,105500.0,105490.0,0.6211773]
[1749352266761,0.97355229,105500.0,105490.0,0.9819773]
[1749352268765,1.0622341,105500.0,105490.0,0.9819773]
[1749352278767,1.0622341,105500.0,105490.0,1.08549619]
[1749352284174,1.0622341,105500.0,105490.0,0.72469619]
[1749352284475,1.0622341,105500.0,105490.0,1.08549619]
[1749352284669,1.0622341,105500.0,105490.0,0.72469619]
[1749352284869,1.0622341,105500.0,105490.0,1.08549619]
[1749352287274,1.0622341,105500.0,105490.0,0.72469619]
[1749352287574,1.0622341,105500.0,105490.0,1.08549619]
[1749352287772,0.95770629,105500.0,105490.0,1.08549619]
[1749352290571,0.95750629,105500.0,105490.0,1.08549619]
[1749352293080,0.95750629,105500.0,105490.0,0.72469619]
[1749352293279,0.95750629,105500.0,105490.0,1.08549619]
[1749352298681,1.0620341,105500.0,105490.0,1.08549619]
[1749352300182,0.95750629,105500.0,105490.0,1.08549619]
[1749352301085,0.95750629,105500.0,105490.0,0.72469619]
[1749352301288,0.95750629,105500.0,105490.0,1.08549619]
[1749352301289,1.05714629,105500.0,105490.0,1.08549619]
[1749352301782,1.05714629,105500.0,105490.0,0.72469619]
[1749352302087,1.05714629,105500.0,105490.0,1.08549619]
[1749352304993,1.05714629,105500.0,105490.0,0.72469619]
[1749352305196,1.05714629,105500.0,105490.0,1.08549619]
[1749352308894,1.08667284,105500.0,105490.0,0.9819773]
[1749352309393,1.1753711,105500.0,105490.0,0.9819773]
[1749352313100,1.08667284,105500.0,105490.0,0.9819773]
[1749352313400,1.17537112,105500.0,105490.0,0.9819773]
[1749352313599,1.17537112,105500.0,105490.0,0.6211773]
[1749352313899,1.17537112,105500.0,105490.0,0.9819773]
[1749352314800,1.05716174,105500.0,105490.0,1.02641642]
[1749352315198,1.05716174,105500.0,105490.0,0.66561642]
[1749352315395,1.05716174,105500.0,105490.0,1.02641642]
[1749352318502,1.08667284,105500.0,105490.0,0.9819773]
[1749352318906,1.0571679,105500.0,105490.0,1.08566859]
[1749352324101,0.95264009,105500.0,105490.0,1.08566859]
[1749352324301,1.0571679,105500.0,105490.0,1.1901964]
[1749352326106,1.0571679,105500.0,105490.0,1.08566859]
[1749352329409,0.96846448,105500.0,105490.0,1.04102947]
[1749352332217,0.96846448,105500.0,105490.0,0.68022947]
[1749352332416,0.96846448,105500.0,105490.0,1.04102947]
[1749352334819,0.86393667,105500.0,105490.0,1.04102947]
[1749352335012,0.96846448,105500.0,105490.0,1.04102947]
[1749352336016,0.96846448,105500.0,105490.0,0.68022947]
[1749352336208,0.96846448,105500.0,105490.0,1.04102947]
[1749352338520,0.86393667,105500.0,105490.0,1.04102947]
[1749352338719,0.96846448,105500.0,105490.0,1.04102947]
[1749352338915,1.0571679,105500.0,105490.0,1.08546398]
[1749352341521,0.95264009,105500.0,105490.0,1.08546398]
[1749352341722,1.0571679,105500.0,105490.0,1.08546398]
[1749352342221,0.53846448,105500.0,105490.0,1.17421225]
[1749352342426,0.6271679,105500.0,105490.0,1.08546398]
[1749352347826,0.7171679,105500.0,105490.0,1.08546398]
[1749352348423,0.6175279,105500.0,105490.0,1.08546398]
[1749352358834,0.73573626,105500.0,105490.0,1.02621181]
[1749352366940,0.64703284,105500.0,105490.0,0.9817773]
[1749352367141,0.73575058,105500.0,105490.0,0.9817773]
[1749352367440,0.64703284,105500.0,105490.0,0.9817773]
[1749352368240,0.73574986,105500.0,105490.0,0.9817773]
[1749352368936,0.6175415,105500.0,105490.0,1.08546398]
[1749352370342,0.7171015,105500.0,105490.0,0.72466398]
[1749352370542,0.7171015,105500.0,105490.0,1.08546398]
[1749352380352,0.82162931,105500.0,105490.0,1.08546398]